fUSD/lending_fUSD_20260226
["ID","MTS","AMOUNT","RATE_DAILY","PERIOD"]
[406682051,1772074240753,-16909.5041764,8.112e-05,2]
[406682053,1772074240762,-11873.1913938,8.114e-05,2]
[406682055,1772074240772,-548.18,8.16e-05,2]
[406682057,1772074240781,-4921.4285588,8.32e-05,2]
[406682059,1772074240791,-8300.1107287,8.32e-05,2]
[406682061,1772074240800,-3773.0203749,8.32e-05,2]
[406682063,1772074240809,-2649.2670971,8.322e-05,2]
[406682065,1772074240819,-548.18,8.357e-05,2]
[406682067,1772074240828,-2351.0,8.445e-05,2]
[406682069,1772074240837,-1355.3912857,8.666e-05,2]
[406682071,1772074240846,-250.0,8.689e-05,2]
[406682073,1772074240855,-246.91345338,8.724e-05,2]
[406682075,1772074240865,-500.0,8.724e-05,2]
[406682077,1772074240874,-500.0,8.724e-05,2]
[406682079,1772074240883,-500.0,8.724e-05,2]
[406682082,1772074240892,-500.0,8.779e-05,2]
[406682083,1772074240904,-500.0,8.779e-05,2]
[406682086,1772074240913,-500.0,8.834e-05,2]
[406682088,1772074240922,-500.0,8.834e-05,2]
[406682090,1772074240932,-500.0,8.888e-05,2]
[406682092,1772074240952,-500.0,8.888e-05,2]
[406682094,1772074240963,-500.0,8.943e-05,2]
[406682096,1772074240972,-500.0,8.943e-05,2]
[406682098,1772074240981,-1000.0,8.979e-05,2]
[406682100,1772074240991,-178.1309999,8.998e-05,2]
[406682102,1772074241001,-302.4286746,8.998e-05,2]
[406682104,1772074241014,-500.0,8.998e-05,2]
[406682105,1772074241023,-458.85187211,8.998e-05,2]
[406682106,1772074241033,-500.0,8.998e-05,2]
[406682107,1772074241043,-500.0,9.053e-05,2]
[406682108,1772074241054,-500.0,9.108e-05,2]
[406682109,1772074241063,-500.0,9.148e-05,2]
[406682110,1772074241073,-243.51213349,9.148e-05,2]
[406682111,1772074241084,-500.0,9.148e-05,2]
[406682112,1772074241093,-156.49815943,9.148e-05,2]
[406682113,1772074241103,-224.74754567,9.148e-05,2]
[406682114,1772074241114,-263.76700866,9.148e-05,2]
[406682115,1772074241124,-150.0,9.148e-05,2]
[406682116,1772074241133,-158.31265112,9.148e-05,2]
[406682117,1772074241143,-500.0,9.162e-05,2]
[406682118,1772074241154,-1852.42,9.186e-05,2]
[406682119,1772074241163,-225.97,9.2e-05,2]
[406682120,1772074241173,-500.0,9.203e-05,2]
[406682121,1772074241182,-500.0,9.203e-05,2]
[406682122,1772074241193,-150.0,9.203e-05,2]
[406682123,1772074241201,-233.07874525,9.217e-05,2]
[406682124,1772074241210,-500.0,9.258e-05,2]
[406682125,1772074241219,-515.01044141,9.258e-05,2]
[406682126,1772074241228,-503.15080927,9.272e-05,2]
[406682127,1772074241238,-3292.0,9.29e-05,2]
[406682128,1772074241247,-154.51645155,9.312e-05,2]
[406682129,1772074241256,-463.13186023,9.392e-05,2]
[406682130,1772074241265,-9999.99,9.67e-05,2]
[406682131,1772074241274,-13087.87,9.67e-05,2]
[406682132,1772074241282,-224.83939756,0.0001,2]
[406682133,1772074241291,-151.0,0.0001,2]
[406682134,1772074241300,-151.0,0.0001,2]
[406682135,1772074241309,-151.0,0.0001,2]
[406682136,1772074241318,-151.0,0.0001,2]
[406682137,1772074241328,-151.0,0.0001,2]
[406682138,1772074241337,-151.0,0.0001,2]
[406682139,1772074241350,-151.0,0.0001,2]
[406682140,1772074241369,-151.0,0.0001,2]
[406682141,1772074241381,-151.0,0.0001,2]
[406682142,1772074241397,-151.0,0.0001,2]
[406682143,1772074241412,-151.0,0.0001,2]
[406682144,1772074241428,-151.0,0.0001,2]
[406682145,1772074241442,-151.0,0.0001,2]
[406682146,1772074241453,-151.0,0.0001,2]
[406682147,1772074241469,-151.0,0.0001,2]
[406682148,1772074241484,-151.0,0.0001,2]
[406682149,1772074241500,-151.0,0.0001,2]
[406682150,1772074241515,-151.0,0.0001,2]
[406682151,1772074241531,-151.0,0.0001,2]
[406682152,1772074241550,-153.4251829,0.0001,2]
[406682153,1772074241566,-167.86555459,0.0001,2]
[406682154,1772074241580,-405.27660943,0.00010041,2]
[406682155,1772074241599,-1000.0,0.00010101,2]
[406682156,1772074241616,-4609.0,0.00010219,2]
[406682157,1772074241633,-553.92798644,0.00010228,2]
[406682158,1772074241644,-500.0,0.000103,2]
[406682159,1772074241660,-518.88437853,0.000103,2]
[406682160,1772074241674,-515.09383157,0.000103,2]
[406682161,1772074241685,-500.0,0.000103,2]
[406682162,1772074241703,-739.84545781,0.000103,2]
[406682163,1772074241717,-587.30475258,0.000103,2]
[406682164,1772074241729,-962.84,0.00010462,2]
[406682165,1772074241742,-153.38,0.00010671,2]
[406682166,1772074241756,-14929.04,0.00010959,2]
[406682167,1772074241774,-1310.02753916,0.00010999,2]
[406682168,1772074241787,-3342.45896472,0.00011099,2]
[406682169,1772074241801,-3342.45896472,0.00011099,2]
[406682170,1772074241816,-3342.45896472,0.00011099,2]
[406682171,1772074241830,-3342.45896472,0.00011099,2]
[406682172,1772074241844,-18457.9110656,0.00011099,2]
[406682173,1772074241858,-18457.91106556,0.00011099,2]
[406682174,1772074241872,-18457.91106556,0.00011099,2]
[406682175,1772074241885,-18457.91106556,0.00011099,2]
[406682176,1772074241899,-23740.0,0.000112,2]
[406682177,1772074241912,-1000.0,0.00011224,2]
[406682178,1772074241926,-1819.0,0.00011241,2]
[406682179,1772074241940,-5531.0,0.000115,3]
[406682180,1772074241954,-152.0,0.00011708,3]
[406682181,1772074241968,-6565.8,0.00011741,2]
[406682182,1772074241981,-18457.91106556,0.00011882,2]
[406682183,1772074241995,-152.0,0.00011888,4]
[406682184,1772074242011,-5531.0,0.000119,5]
[406682185,1772074242026,-152.0,0.00012068,5]
[406682186,1772074242039,-152.0,0.00012247,6]
[406682187,1772074242052,-1000.0,0.00012346,2]
[406682188,1772074242067,-152.0,0.00012427,7]
[406682189,1772074242079,-224.83939755,0.0001249,2]
[406682190,1772074242095,-1363.99,0.00012545,2]
[406682191,1772074242109,-152.0,0.00012607,8]
[406682192,1772074242123,-152.0,0.00012786,9]
[406682193,1772074242135,-500.0,0.0001289,2]
[406682194,1772074242148,-500.0,0.0001289,2]
[406682195,1772074242162,-500.0,0.0001289,2]
[406682196,1772074242175,-500.0,0.0001289,2]
[406682197,1772074242188,-501.93276983,0.0001289,2]
[406682198,1772074242201,-500.0,0.0001289,2]
[406682199,1772074242215,-501.84617308,0.0001289,2]
[406682200,1772074242228,-500.0,0.0001289,2]
[406682201,1772074242241,-500.0,0.0001289,2]
[406682202,1772074242259,-500.0,0.0001289,2]
[406682203,1772074242273,-500.0,0.0001289,2]
[406682204,1772074242286,-517.56895491,0.0001289,2]
[406682205,1772074242300,-506.48924267,0.0001289,2]
[406682206,1772074242312,-514.5742252,0.0001289,2]
[406682207,1772074242326,-152.0,0.00012966,10]
[406682208,1772074242339,-18457.91106556,0.00013086,2]
[406682209,1772074242353,-152.0,0.00013146,11]
[406682210,1772074242366,-152.0,0.00013325,12]
[406682211,1772074242379,-1000.0,0.00013469,2]
[406682212,1772074242392,-152.0,0.00013505,13]
[406682213,1772074242406,-152.0,0.00013685,14]
[406682214,1772074242419,-500.0,0.00013698,2]
[406682215,1772074242431,-500.0,0.00013698,2]
[406682216,1772074242446,-500.0,0.00013698,2]
[406682217,1772074242459,-500.0,0.00013698,2]
[406682220,1772074242472,-500.0,0.00013698,2]
[406682221,1772074242486,-500.0,0.00013698,2]
[406682222,1772074242499,-500.0,0.00013698,2]
[406682223,1772074242511,-500.0,0.00013698,2]
[406682226,1772074242528,-500.0,0.00013698,2]
[406682227,1772074242541,-500.0,0.00013698,2]
[406682228,1772074242551,-500.0,0.00013698,2]
[406682234,1772074242733,-500.0,0.00013698,2]
[406682235,1772074242764,-568.60354988,0.00013698,2]
[406682236,1772074242774,-500.0,0.00013698,2]
[406682237,1772074242783,-500.0,0.00013698,2]
[406682238,1772074242793,-500.0,0.00013698,2]
[406682239,1772074242802,-368.2260392,0.00013698,2]
[406682240,1772074242811,-500.0,0.00013698,2]
[406682241,1772074242822,-500.0,0.00013698,2]
[406682242,1772074242831,-500.0,0.00013698,2]
[406682243,1772074242840,-500.0,0.00013698,2]
[406682244,1772074242850,-500.0,0.00013698,2]
[406682245,1772074242859,-500.0,0.00013698,2]
[406682246,1772074242868,-500.0,0.00013698,2]
[406682247,1772074242877,-500.0,0.00013698,2]
[406682248,1772074242885,-218.52098897,0.00013698,2]
[406682249,1772074242895,-500.0,0.00013698,2]
[406682250,1772074242905,-405.62075362,0.00013698,2]
[406682251,1772074242915,-500.0,0.00013698,2]
[406682252,1772074242927,-500.0,0.00013698,2]
[406682253,1772074242939,-500.0,0.00013698,2]
[406682254,1772074242948,-500.0,0.00013698,2]
[406682255,1772074242958,-585.34193517,0.00013698,2]
[406682256,1772074242969,-500.0,0.00013698,2]
[406682257,1772074242980,-500.0,0.00013698,2]
[406682258,1772074242989,-500.0,0.00013698,2]
[406682259,1772074242999,-500.0,0.00013698,2]
[406682260,1772074243009,-500.0,0.00013698,2]
[406682261,1772074243022,-500.0,0.00013698,2]
[406682262,1772074243031,-500.0,0.00013698,2]
[406682263,1772074243041,-500.0,0.00013698,2]
[406682264,1772074243051,-500.0,0.00013698,2]
[406682265,1772074243061,-500.0,0.00013698,2]
[406682266,1772074243071,-500.0,0.00013698,2]
[406682267,1772074243080,-500.0,0.00013698,2]
[406682268,1772074243092,-500.0,0.00013698,2]
[406682269,1772074243101,-500.0,0.00013698,2]
[406682270,1772074243111,-500.0,0.00013698,2]
[406682271,1772074243121,-500.0,0.00013698,2]
[406682272,1772074243131,-500.0,0.00013698,2]
[406682273,1772074243143,-500.0,0.00013698,2]
[406682274,1772074243153,-500.0,0.00013698,2]
[406682275,1772074243163,-500.0,0.00013698,2]
[406682276,1772074243172,-409.20397161,0.00013698,2]
[406682277,1772074243181,-500.0,0.00013698,2]
[406682278,1772074243192,-500.0,0.00013698,2]
[406682279,1772074243201,-500.0,0.00013698,2]
[406682280,1772074243210,-269.57915282,0.00013698,2]
[406682281,1772074243220,-500.0,0.00013698,2]
[406682282,1772074243230,-500.0,0.00013698,2]
[406682283,1772074243239,-467.36158262,0.00013698,2]
[406682284,1772074243248,-500.0,0.00013698,2]
[406682285,1772074243258,-500.0,0.00013698,2]
[406682286,1772074243267,-500.0,0.00013698,2]
[406682287,1772074243276,-500.0,0.00013698,2]
[406682288,1772074243287,-500.0,0.00013698,2]
[406682289,1772074243296,-500.0,0.00013698,2]
[406682291,1772074243305,-500.0,0.00013698,2]
[406682292,1772074243313,-500.0,0.00013698,2]
[406682293,1772074243322,-500.0,0.00013698,2]
[406682294,1772074243332,-500.0,0.00013698,2]
[406682295,1772074243343,-500.0,0.00013698,2]
[406682296,1772074243352,-268.69007129,0.00013698,2]
[406682297,1772074243361,-271.25,0.00013699,2]
[406682298,1772074243371,-226.04,0.00013699,2]
[406682299,1772074243380,-188.37,0.00013699,2]
[406682300,1772074243389,-156.97,0.00013699,2]
[406682301,1772074243400,-784.9,0.00013699,2]
[406682302,1772074243410,-200.0,0.00013699,2]
[406682303,1772074243420,-500.0,0.00013699,2]
[406682304,1772074243429,-500.0,0.00013699,2]
[406682305,1772074243437,-163.81123118,0.00013699,2]
[406682306,1772074243447,-500.0,0.00013699,2]
[406682307,1772074243456,-500.0,0.00013699,2]
[406682308,1772074243465,-500.0,0.00013699,2]
[406682309,1772074243475,-500.0,0.00013699,2]
[406682310,1772074243484,-500.0,0.00013699,2]
[406682311,1772074243493,-500.0,0.00013699,2]
[406682312,1772074243503,-161.16677008,0.00013699,2]
[406682313,1772074243515,-337.83752108,0.00013699,2]
[406682314,1772074243526,-500.0,0.00013699,2]
[406682315,1772074243535,-500.0,0.00013699,2]
[406682316,1772074243545,-500.0,0.00013699,2]
[406682317,1772074243555,-500.0,0.00013699,2]
[406682318,1772074243565,-164.03684488,0.00013699,2]
[406682319,1772074243574,-279.20657511,0.00013699,2]
[406682320,1772074243583,-500.0,0.00013699,2]
[406682321,1772074243592,-500.0,0.00013699,2]
[406682322,1772074243601,-500.0,0.00013699,2]
[406682323,1772074243610,-500.0,0.00013699,2]
[406682324,1772074243620,-500.0,0.00013699,2]
[406682325,1772074243630,-620.71882978,0.00013699,2]
[406682326,1772074243639,-500.0,0.00013699,2]
[406682327,1772074243649,-500.0,0.00013699,2]
[406682328,1772074243659,-500.0,0.00013699,2]
[406682329,1772074243670,-500.0,0.00013699,2]
[406682330,1772074243680,-162.12539331,0.00013699,2]
[406682331,1772074243690,-500.0,0.00013699,2]
[406682332,1772074243700,-160.93544201,0.00013699,2]
[406682333,1772074243709,-500.0,0.00013699,2]
[406682334,1772074243725,-500.0,0.00013699,2]
[406682335,1772074243739,-524.45332011,0.00013699,2]
[406682336,1772074243749,-500.0,0.00013699,2]
[406682337,1772074243759,-500.0,0.00013699,2]
[406682338,1772074243769,-500.0,0.00013699,2]
[406682339,1772074243779,-500.0,0.00013699,2]
[406682340,1772074243789,-500.0,0.00013699,2]
[406682341,1772074243798,-160.2268493,0.00013699,2]
[406682342,1772074243808,-500.0,0.00013699,2]
[406682343,1772074243818,-500.0,0.00013699,2]
[406682344,1772074243828,-500.0,0.00013699,2]
[406682345,1772074243838,-500.0,0.00013699,2]
[406682346,1772074243848,-500.0,0.00013699,2]
[406682347,1772074243858,-500.0,0.00013699,2]
[406682348,1772074243869,-500.0,0.00013699,2]
[406682349,1772074243879,-500.0,0.00013699,2]
[406682350,1772074243889,-500.0,0.00013699,2]
[406682351,1772074243899,-500.0,0.00013699,2]
[406682352,1772074243908,-161.18283823,0.00013699,2]
[406682353,1772074243918,-500.0,0.00013699,2]
[406682354,1772074243928,-209.72063022,0.00013699,2]
[406682355,1772074243938,-500.0,0.00013699,2]
[406682356,1772074243948,-500.0,0.00013699,2]
[406682357,1772074243957,-500.0,0.00013699,2]
[406682358,1772074243967,-308.72210557,0.00013699,2]
[406682359,1772074243977,-500.0,0.00013699,2]
[406682360,1772074243986,-500.0,0.00013699,2]
[406682361,1772074243996,-500.0,0.00013699,2]
[406682362,1772074244005,-500.0,0.00013699,2]
[406682363,1772074244016,-500.0,0.00013699,2]
[406682364,1772074244026,-500.0,0.00013699,2]
[406682365,1772074244035,-500.0,0.00013699,2]
[406682366,1772074244044,-500.0,0.00013699,2]
[406682367,1772074244055,-500.0,0.00013699,2]
[406682368,1772074244065,-500.0,0.00013699,2]
[406682369,1772074244075,-500.0,0.00013699,2]
[406682370,1772074244085,-152.0,0.00013864,15]
[406682371,1772074244097,-152.0,0.00014044,16]
[406682372,1772074244107,-1363.99,0.00014113,2]
[406682373,1772074244117,-152.0,0.00014224,17]
[406682374,1772074244127,-1000.0,0.00014247,2]
[406682375,1772074244142,-800.77489472,0.00014247,2]
[406682376,1772074244152,-1000.0,0.00014247,2]
[406682377,1772074244162,-1000.0,0.00014247,2]
[406682378,1772074244173,-1000.0,0.00014247,2]
[406682379,1772074244183,-1000.0,0.00014247,2]
[406682380,1772074244194,-1000.0,0.00014247,2]
[406682381,1772074244205,-1008.73606544,0.00014247,2]
[406682382,1772074244214,-1001.32593476,0.00014247,2]
[406682383,1772074244224,-1001.17238446,0.00014247,2]
[406682384,1772074244235,-992.81354466,0.00014247,2]
[406682385,1772074244245,-503.4329372,0.00014247,2]
[406682386,1772074244256,-1001.76849561,0.00014247,2]
[406682387,1772074244266,-1001.4270061,0.00014247,2]
[406682388,1772074244275,-1003.43569422,0.00014247,2]
[406682389,1772074244296,-1000.77929008,0.00014247,2]
[406682390,1772074244318,-1000.0,0.00014247,2]
[406682391,1772074244330,-1003.24758094,0.00014247,2]
[406682392,1772074244339,-1000.0,0.00014247,2]
[406682393,1772074244349,-176.13031917,0.00014247,2]
[406682394,1772074244359,-1002.10318534,0.00014247,2]
[406682395,1772074244369,-1000.92893184,0.00014247,2]
[406682396,1772074244379,-1000.0,0.00014247,2]
[406682397,1772074244391,-1001.36718097,0.00014247,2]
[406682398,1772074244401,-380.66692773,0.00014247,2]
[406682399,1772074244412,-1000.0,0.00014247,2]
[406682400,1772074244422,-185.75789258,0.00014247,2]
[406682401,1772074244432,-1000.87913707,0.00014247,2]
[406682402,1772074244442,-1002.48322638,0.00014247,2]
[406682403,1772074244454,-1001.13953676,0.00014247,2]
[406682404,1772074244465,-1000.0,0.00014247,2]
[406682405,1772074244479,-1001.29204001,0.00014247,2]
[406682406,1772074244492,-1005.73275507,0.00014247,2]
[406682407,1772074244505,-1001.21349906,0.00014247,2]
[406682408,1772074244517,-1002.34821316,0.00014247,2]
[406682409,1772074244527,-502.89642455,0.00014247,2]
[406682410,1772074244541,-501.26732063,0.00014247,2]
[406682411,1772074244556,-1003.92439647,0.00014247,2]
[406682412,1772074244572,-1002.22507836,0.00014247,2]
[406682413,1772074244588,-604.53668535,0.00014247,2]
[406682414,1772074244601,-468.28282852,0.00014247,2]
[406682415,1772074244610,-1001.84370953,0.00014247,2]
[406682416,1772074244621,-351.97959674,0.00014247,2]
[406682417,1772074244631,-1009.34294002,0.00014247,2]
[406682418,1772074244645,-1003.77854516,0.00014247,2]
[406682419,1772074244657,-1001.81202346,0.00014247,2]
[406682420,1772074244667,-1001.07129304,0.00014247,2]
[406682421,1772074244678,-1001.12380707,0.00014247,2]
[406682422,1772074244690,-1001.41900539,0.00014247,2]
[406682423,1772074244701,-1000.0,0.00014247,2]
[406682424,1772074244710,-1002.2111982,0.00014247,2]
[406682425,1772074244721,-375.44426131,0.00014247,2]
[406682426,1772074244734,-1002.06581507,0.00014247,2]
[406682427,1772074244744,-1001.6863577,0.00014247,2]
[406682428,1772074244754,-18457.91106556,0.00014289,2]
[406682429,1772074244764,-180.0,0.00014399,2]
[406682430,1772074244773,-152.0,0.00014403,18]
[406682431,1772074244786,-500.0,0.0001441,2]
[406682432,1772074244795,-500.0,0.0001441,2]
[406682433,1772074244805,-1310.02753914,0.0001445,2]
[406682434,1772074244814,-152.0,0.00014583,19]
[406682435,1772074244824,-160.0,0.00014627,2]
[406682436,1772074244834,-173.95657067,0.00014627,2]
[406682437,1772074244844,-962.84,0.00014647,2]
[406682438,1772074244853,-152.0,0.00014763,20]
[406682439,1772074244863,-276.67774061,0.00014795,2]
[406682440,1772074244873,-1092.89603598,0.00014795,2]
[406682441,1772074244883,-1500.0,0.00014795,2]
[406682442,1772074244893,-1501.66913587,0.00014795,2]
[406682443,1772074244902,-1501.31398906,0.00014795,2]
[406682444,1772074244913,-1507.14480437,0.00014795,2]
[406682445,1772074244922,-1500.0,0.00014795,2]
[406682446,1772074244933,-1217.27858116,0.00014795,2]
[406682447,1772074244944,-1043.57929262,0.00014795,2]
[406682448,1772074244953,-1500.0,0.00014795,2]
[406682449,1772074244966,-502.0,0.0001489,2]
[406682450,1772074244976,-152.0,0.00014942,21]
[406682451,1772074244985,-250.0,0.00015,2]
[406682452,1772074244996,-152.0,0.00015122,22]
[406682453,1772074245006,-277.35679052,0.0001518,2]
[406682454,1772074245020,-152.0,0.00015302,23]
[406682455,1772074245030,-518.0,0.00015342,2]
[406682456,1772074245040,-2585.0,0.00015342,2]
[406682457,1772074245051,-1827.89337357,0.00015342,2]
[406682458,1772074245061,-2000.0,0.00015342,2]
[406682459,1772074245070,-2000.0,0.00015342,2]
[406682460,1772074245080,-167.86555459,0.00015386,2]
[406682461,1772074245089,-500.0,0.00015395,2]
[406682462,1772074245101,-500.0,0.00015395,2]
[406682463,1772074245123,-500.0,0.00015395,2]
[406682464,1772074245144,-500.83672935,0.00015395,2]
[406682465,1772074245155,-175.668016,0.00015396,2]
[406682466,1772074245164,-151.0,0.00015396,2]
[406682467,1772074245174,-187.550991,0.00015396,2]
[406682468,1772074245184,-151.0,0.00015396,2]
[406682469,1772074245193,-153.208343,0.00015396,2]
[406682470,1772074245203,-1172318.202413,0.00015396,2]
[406682475,1772074245735,-6184.09280996,0.000109,2]
[406682476,1772074245744,-21163.2329888,0.00015396,2]
[406682477,1772074245756,-9449.51153875,0.00015396,2]
[406682478,1772074245869,-160.42111676,0.00015396,2]
[406682479,1772074245883,-722.8955016,0.00015396,2]
[406682480,1772074245990,-3342.45896472,0.00011811,2]
[406682481,1772074246000,-6159.54103528,0.00015396,2]
[406682485,1772074246027,-444.58999998,0.00015396,2]
[406682539,1772074296685,-327.1279515,6.98e-05,2]
[406682540,1772074296712,-500.0,6.98e-05,2]
[406682541,1772074296737,-372.8720485,6.98e-05,2]
[406683020,1772075431760,-250.91928015,6.743e-05,2]
[406683022,1772075431772,-321.22371985,6.743e-05,2]
[406683024,1772075431781,-39.81892821,6.756e-05,2]
[406683026,1772075431792,-210.18107179,6.756e-05,2]
[406683028,1772075431802,-284.0,6.779e-05,2]
[406683030,1772075431811,-150.0,6.779e-05,2]
[406683031,1772075431820,-229.0267149,6.779e-05,2]
[406683032,1772075431831,-70.9732851,6.779e-05,2]
[406683033,1772075431840,-214.0,6.779e-05,2]
[406683034,1772075431851,-300.0,6.779e-05,2]
[406683035,1772075431862,-601.8528581,6.779e-05,2]
[406683036,1772075431873,-598.1471419,6.779e-05,2]
[406683037,1772075431883,-280.32675473,6.78e-05,2]
[406683038,1772075431901,-219.67324527,6.78e-05,2]
[406683039,1772075431911,-500.0,6.78e-05,2]
[406683040,1772075431920,-254.59277983,6.78e-05,2]
[406683041,1772075431930,-500.0,6.78e-05,2]
[406683042,1772075431939,-8.6355055,6.78e-05,2]
[406683043,1772075431950,-491.3644945,6.78e-05,2]
[406683044,1772075431960,-500.0,6.78e-05,2]
[406683045,1772075431970,-23.7983843,6.78e-05,2]
[406683047,1772075431986,-476.2016157,6.78e-05,2]
[406683049,1772075431995,-500.0,6.78e-05,2]
[406683051,1772075432005,-500.0,6.78e-05,2]
[406683053,1772075432014,-463.73011857,6.78e-05,2]
[406683055,1772075432023,-500.0,6.78e-05,2]
[406683057,1772075432032,-500.0,6.78e-05,2]
[406683059,1772075432042,-500.0,6.78e-05,2]
[406683061,1772075432052,-500.0,6.78e-05,2]
[406683063,1772075432062,-500.0,6.78e-05,2]
[406683065,1772075432072,-500.0,6.78e-05,2]
[406683067,1772075432081,-500.0,6.78e-05,2]
[406683069,1772075432091,-500.0,6.78e-05,2]
[406683071,1772075432100,-500.0,6.78e-05,2]
[406683073,1772075432109,-500.0,6.78e-05,2]
[406683075,1772075432118,-1200.0,6.78e-05,2]
[406683076,1772075432127,-1091202.25533766,6.781e-05,2]
[406683077,1772075432138,-158823.96346872,6.781e-05,2]
[406683078,1772075432148,-238498.96761828,6.781e-05,2]
[406683079,1772075432159,-203682.86218763,6.781e-05,2]
[406683080,1772075432170,-1254.41808677,6.781e-05,2]
[406683081,1772075432181,-1947.11191711,6.781e-05,2]
[406683082,1772075432200,-666.96670514,6.781e-05,2]
[406683083,1772075432214,-266.38014877,6.781e-05,2]
[406683094,1772075437822,-2020.0,6.781e-05,2]
[406683095,1772075437929,-209.9279515,6.781e-05,2]
[406683096,1772075437941,-1651.31050902,6.781e-05,2]
[406683097,1772075437951,-1277.27139037,6.781e-05,2]
[406683098,1772075438043,-674.50061254,6.781e-05,2]
[406683232,1772075440018,-2903.81889547,6.781e-05,2]
[406683238,1772075440073,-294920.24517102,6.781e-05,2]
[406683240,1772075440083,-756.0,6.849e-05,2]
[406683241,1772075440092,-518.0,6.849e-05,2]
[406683242,1772075440103,-12516.14437374,6.871e-05,2]
[406683243,1772075440113,-209.06,6.9e-05,2]
[406683244,1772075440123,-152.95257897,6.9e-05,2]
[406683245,1772075440133,-150.99,6.915e-05,2]
[406683246,1772075440143,-9999.99,6.915e-05,2]
[406683247,1772075440154,-299.99,6.915e-05,2]
[406683248,1772075440164,-150.99,6.915e-05,2]
[406683249,1772075440174,-381.71,6.915e-05,2]
[406683250,1772075440183,-9999.99,6.915e-05,2]
[406683251,1772075440193,-2585.0,6.959e-05,2]
[406683252,1772075440202,-2259.0,6.959e-05,2]
[406683253,1772075440211,-443.31762084,7.416e-05,2]
[406683254,1772075440221,-513.75296875,7.416e-05,2]
[406683255,1772075440230,-304.12596972,7.417e-05,2]
[406683256,1772075440240,-250.0,7.417e-05,2]
[406683257,1772075440249,-153.0,7.456e-05,2]
[406683258,1772075440259,-1680.0,7.456e-05,2]
[406683259,1772075440267,-674.0,7.515e-05,2]
[406683260,1772075440277,-594.0,7.53e-05,2]
[406683261,1772075440286,-265.0,7.65e-05,2]
[406683262,1772075440295,-2351.0,8.202e-05,2]
[406683263,1772075440304,-252.84708999,8.219e-05,2]
[406683264,1772075440314,-150.0,8.219e-05,2]
[406683265,1772075440323,-500.0,8.219e-05,2]
[406683266,1772075440333,-500.0,8.219e-05,2]
[406683267,1772075440342,-500.0,8.219e-05,2]
[406683268,1772075440352,-150.0,8.219e-05,2]
[406683269,1772075440362,-500.0,8.219e-05,2]
[406683270,1772075440372,-253.66036876,8.219e-05,2]
[406683271,1772075440387,-500.0,8.219e-05,2]
[406683272,1772075440396,-150.0,8.219e-05,2]
[406683273,1772075440407,-500.0,8.219e-05,2]
[406683274,1772075440417,-500.0,8.219e-05,2]
[406683275,1772075440427,-500.0,8.219e-05,2]
[406683276,1772075440437,-500.0,8.219e-05,2]
[406683277,1772075440446,-150.0,8.219e-05,2]
[406683278,1772075440459,-150.0,8.219e-05,2]
[406683279,1772075440469,-156.49815943,8.219e-05,2]
[406683280,1772075440478,-500.0,8.219e-05,2]
[406683281,1772075440488,-150.0,8.219e-05,2]
[406683282,1772075440497,-150.0,8.219e-05,2]
[406683283,1772075440506,-150.0,8.219e-05,2]
[406683284,1772075440516,-150.0,8.219e-05,2]
[406683285,1772075440525,-281.27422717,8.219e-05,2]
[406683286,1772075440535,-246.91345338,8.219e-05,2]
[406683287,1772075440544,-150.0,8.219e-05,2]
[406683288,1772075440553,-500.0,8.219e-05,2]
[406683289,1772075440563,-150.0,8.219e-05,2]
[406683290,1772075440572,-500.0,8.219e-05,2]
[406683291,1772075440582,-500.0,8.219e-05,2]
[406683292,1772075440593,-167.49194239,8.219e-05,2]
[406683293,1772075440603,-500.0,8.219e-05,2]
[406683294,1772075440612,-150.0,8.219e-05,2]